lending/lending_fUSD_20260310
["ID","MTS","AMOUNT","RATE_DAILY","PERIOD"]
[408092162,1773136252890,-500.0,0.00019969,2]
[408092163,1773136252900,-500.0,0.00019969,2]
[408092164,1773136252915,-500.0,0.00019969,2]
[408092165,1773136252925,-500.0,0.00019969,2]
[408092166,1773136252935,-500.0,0.00019969,2]
[408092167,1773136252946,-500.0,0.00019969,2]
[408092168,1773136252956,-500.0,0.00019969,2]
[408092169,1773136252966,-500.0,0.00019969,2]
[408092170,1773136252976,-496.16,0.00019969,2]
[408092171,1773136252986,-500.0,0.00019969,2]
[408092172,1773136252996,-500.0,0.00019969,2]
[408092173,1773136253006,-500.0,0.00019969,2]
[408092174,1773136253016,-500.0,0.00019969,2]
[408092175,1773136253026,-443.91009413,0.00019969,2]
[408092176,1773136253037,-500.0,0.00019969,2]
[408092177,1773136253049,-500.0,0.00019969,2]
[408092178,1773136253058,-500.0,0.00019969,2]
[408092179,1773136253068,-500.0,0.00019969,2]
[408092180,1773136253079,-500.0,0.00019969,2]
[408092181,1773136253089,-500.0,0.00019969,2]
[408092182,1773136253099,-500.0,0.00019969,2]
[408092183,1773136253109,-500.0,0.00019969,2]
[408092184,1773136253118,-500.0,0.00019969,2]
[408092185,1773136253128,-500.0,0.00019969,2]
[408092186,1773136253137,-500.0,0.00019969,2]
[408092187,1773136253147,-648.59,0.00019969,2]
[408092188,1773136253157,-500.0,0.00019969,2]
[408092189,1773136253166,-500.0,0.00019969,2]
[408092190,1773136253176,-500.0,0.00019969,2]
[408092191,1773136253185,-257.44962738,0.00019969,2]
[408092192,1773136253194,-833.99,0.00019969,2]
[408092193,1773136253204,-833.99,0.00019969,2]
[408092194,1773136253214,-833.99,0.00019969,2]
[408092195,1773136253223,-833.99,0.00019969,2]
[408092196,1773136253233,-833.99,0.00019969,2]
[408092197,1773136253244,-833.99,0.00019969,2]
[408092198,1773136253254,-833.99,0.00019969,2]
[408092199,1773136253264,-833.99,0.00019969,2]
[408092200,1773136253274,-833.99,0.00019969,2]
[408092201,1773136253285,-833.99,0.00019969,2]
[408092202,1773136253300,-833.99,0.00019969,2]
[408092203,1773136253309,-833.99,0.00019969,2]
[408092204,1773136253319,-833.99,0.00019969,2]
[408092205,1773136253330,-500.0,0.00019969,2]
[408092206,1773136253340,-500.0,0.00019969,2]
[408092207,1773136253350,-500.0,0.00019969,2]
[408092208,1773136253359,-500.0,0.00019969,2]
[408092209,1773136253369,-500.0,0.00019969,2]
[408092210,1773136253380,-500.0,0.00019969,2]
[408092211,1773136253390,-500.0,0.00019969,2]
[408092212,1773136253399,-500.0,0.00019969,2]
[408092213,1773136253410,-500.0,0.00019969,2]
[408092214,1773136253420,-500.0,0.00019969,2]
[408092215,1773136253430,-500.0,0.00019969,2]
[408092216,1773136253439,-625.68,0.00019969,2]
[408092217,1773136253450,-500.0,0.00019969,2]
[408092218,1773136253459,-500.0,0.00019969,2]
[408092219,1773136253470,-500.0,0.00019969,2]
[408092220,1773136253479,-500.0,0.00019969,2]
[408092221,1773136253489,-500.0,0.00019969,2]
[408092222,1773136253499,-500.0,0.00019969,2]
[408092223,1773136253509,-513.48,0.00019969,2]
[408092224,1773136253519,-694.99,0.00019969,2]
[408092225,1773136253528,-694.99,0.00019969,2]
[408092226,1773136253538,-694.99,0.00019969,2]
[408092227,1773136253548,-694.99,0.00019969,2]
[408092228,1773136253558,-694.99,0.00019969,2]
[408092229,1773136253567,-694.99,0.00019969,2]
[408092230,1773136253577,-694.99,0.00019969,2]
[408092231,1773136253587,-694.99,0.00019969,2]
[408092232,1773136253596,-694.99,0.00019969,2]
[408092233,1773136253606,-694.99,0.00019969,2]
[408092234,1773136253615,-694.99,0.00019969,2]
[408092235,1773136253625,-694.99,0.00019969,2]
[408092236,1773136253635,-694.99,0.00019969,2]
[408092237,1773136253646,-1020.71,0.00019969,2]
[408092238,1773136253656,-1020.71,0.00019969,2]
[408092239,1773136253669,-1020.71,0.00019969,2]
[408092240,1773136253678,-1020.71,0.00019969,2]
[408092241,1773136253688,-1020.71,0.00019969,2]
[408092242,1773136253698,-1020.71,0.00019969,2]
[408092243,1773136253708,-1020.71,0.00019969,2]
[408092244,1773136253719,-1020.71,0.00019969,2]
[408092245,1773136253729,-1020.71,0.00019969,2]
[408092246,1773136253739,-1020.71,0.00019969,2]
[408092247,1773136253750,-1020.71,0.00019969,2]
[408092248,1773136253759,-1020.71,0.00019969,2]
[408092249,1773136253769,-1020.71,0.00019969,2]
[408092250,1773136253779,-960.76996543,0.00019969,2]
[408092251,1773136253831,-59.94003457,0.00019969,2]
[408092252,1773136253842,-1037.93,0.00019969,2]
[408092253,1773136253854,-972.92996562,0.00019969,2]
[408092257,1773136936396,807.05125089,0.00015,30]
[408092258,1773136940313,314.72,9.187e-05,2]
[408092259,1773136940523,314.72,9.671e-05,2]
[408092260,1773136940724,314.72,0.00010154,2]
[408092261,1773136940919,314.72,0.00010638,2]
[408092262,1773136941124,314.72,0.00011121,2]
[408092263,1773136941334,314.72,0.00011605,2]
[408092264,1773136941525,314.72,0.00012088,2]
[408092265,1773136941724,314.72,0.00012572,2]
[408092266,1773136941941,314.72,0.00013056,2]
[408092267,1773136942140,314.72,0.00013539,2]
[408092268,1773136942335,314.72,0.00014023,2]
[408092269,1773136942546,314.72,0.00014506,2]
[408092270,1773136942750,314.72,0.0001499,2]
[408092271,1773136942959,314.72,0.00015473,2]
[408092272,1773136943157,314.72,0.00015957,2]
[408092273,1773136955242,4472.14874911,9.5e-05,3]
[408092274,1773136955269,3966.07610746,9.5e-05,3]
[408092276,1773136962787,3773.01298415,0.0002,120]
[408092277,1773137108257,2368.001722,7.945e-05,2]
[408092278,1773137235615,500.0,0.00015,30]
[408092279,1773137235739,700.0,0.00015,30]
[408092280,1773137236339,500.0,0.00015,30]
[408092281,1773137240664,500.0,0.00015,30]
[408092284,1773137287436,-314.72,0.0001644,2]
[408092285,1773137287457,-2500.0,0.0001667,2]
[408092286,1773137287477,-2500.0,0.00016832,2]
[408092287,1773137287497,-2500.0,0.00016832,2]
[408092288,1773137287518,-2185.28,0.00016832,2]
[408092289,1773137290546,-314.72,0.00016832,2]
[408092290,1773137290567,-4575.81290432,0.000169,2]
[408092291,1773137290589,-5109.46709568,0.000169,2]
[408092292,1773137292084,-10000.0,0.000169,2]
[408092293,1773137292835,-10000.0,0.000169,2]
[408092294,1773137293591,-10000.0,0.000169,2]
[408092295,1773137294246,-10000.0,0.000169,2]
[408092296,1773137294922,-10000.0,0.000169,2]
[408092297,1773137295969,-10000.0,0.000169,2]
[408092298,1773137297394,-10000.0,0.000169,2]
[408092299,1773137298051,-10000.0,0.000169,2]
[408092300,1773137303762,-222.31686926,0.00016732,2]
[408092301,1773137303785,-9777.68313074,0.000169,2]
[408092302,1773137304959,-1924.56497358,0.000169,2]
[408092303,1773137304979,-314.72,0.00016924,2]
[408092304,1773137305000,-500.0,0.0001699,2]
[408092305,1773137305024,-428.63987053,0.0001699,2]
[408092306,1773137305043,-200.0,0.0001699,2]
[408092307,1773137305067,-500.0,0.0001699,2]
[408092308,1773137305091,-151.0,0.0001699,2]
[408092309,1773137305113,-151.0,0.0001699,2]
[408092310,1773137305134,-151.0,0.0001699,2]
[408092311,1773137305156,-151.0,0.0001699,2]
[408092312,1773137305176,-151.0,0.0001699,2]
[408092313,1773137305200,-151.0,0.0001699,2]
[408092314,1773137305223,-151.0,0.0001699,2]
[408092315,1773137305247,-216.16485696,0.0001699,2]
[408092316,1773137305271,-300.0,0.00016997,2]
[408092317,1773137305294,-1200.0,0.00016998,2]
[408092318,1773137305320,-500.0,0.00016999,2]
[408092319,1773137305342,-500.0,0.00016999,2]
[408092320,1773137305369,-500.0,0.00016999,2]
[408092321,1773137305392,-500.0,0.00016999,2]
[408092322,1773137305416,-163.62374114,0.00016999,2]
[408092323,1773137305442,-300.0,0.00017,2]
[408092324,1773137305467,-150.0,0.00017,30]
[408092325,1773137305487,-294.0,0.00017,2]
[408092326,1773137305509,-451.28655779,0.00017,2]
[408092327,1773137306078,-10000.0,0.00017,2]
[408092328,1773137307262,-10000.0,0.00017,2]
[408092348,1773137431746,-265.84703492,0.00015109,2]
[408092351,1773137431802,-813.67685836,0.00015109,2]
[408092352,1773137431814,-474.202935,0.00015109,2]
[408092353,1773137431857,-376.52317172,0.00015109,2]
[408092354,1773137431867,-266.081441,0.00016537,7]
[408092355,1773137431877,-2500.0,0.00016768,2]
[408092356,1773137431886,-375.54,0.0001689,2]
[408092357,1773137431895,-1000.0,0.00016899,2]
[408092358,1773137431904,-1140.36305435,0.00016899,2]
[408092359,1773137431915,-59.63694565,0.00016899,2]
[408092360,1773137431924,-9022.68173861,0.000169,2]
[408092361,1773137431935,-150316.20296189,0.000169,2]
[408092362,1773137431946,-16702.15890058,0.000169,2]
[408092363,1773137431957,-8508.94173185,0.000169,2]
[408092388,1773137438514,-20736.13569132,0.000169,2]
[408092389,1773137438530,-1070.36465114,0.000169,2]
[408092390,1773137438541,-833.66172791,0.000169,2]
[408092392,1773137440151,-396.529999,0.000169,2]
[408092393,1773137440163,-126816.6945977,0.000169,2]
[408092394,1773137440172,-11190.58288707,0.000169,2]
[408092395,1773137440181,-375.54,0.0001699,2]
[408092396,1773137440191,-375.54,0.0001699,2]
[408092397,1773137440201,-8536.7630618,0.00016997,2]
[408092398,1773137440211,-145781.05714835,0.00017,2]
[408092399,1773137440220,-504.0,0.00017,2]
[408092400,1773137440229,-505.0,0.00017,2]
[408092401,1773137440238,-541.0,0.00017,2]
[408092402,1773137440247,-2500.0,0.00017049,2]
[408092403,1773137440257,-2500.0,0.00017049,2]
[408092404,1773137440266,-375.54,0.00017137,2]
[408092405,1773137440275,-17479.73566878,0.00017147,2]
[408092406,1773137440284,-11190.58288699,0.0001723,2]
[408092407,1773137440294,-152.0,0.0001733,3]
[408092408,1773137440303,-314.72,0.00017407,2]
[408092409,1773137440312,-2000.0,0.00017417,2]
[408092410,1773137440321,-1669.66,0.00017417,2]
[408092411,1773137440330,-11190.58288699,0.0001756,2]
[408092412,1773137440339,-215.0,0.00017682,2]
[408092413,1773137440348,-939.0,0.00017709,2]
[408092414,1773137440357,-889.15,0.00017849,2]
[408092415,1773137440366,-11190.58288699,0.00017891,2]
[408092416,1773137440375,-314.72,0.00017891,2]
[408092417,1773137440385,-150.0,0.00017899,2]
[408092418,1773137440396,-13457.76362143,0.00018,5]
[408092419,1773137440406,-481.01471195,0.00018,2]
[408092420,1773137440416,-1197.75782958,0.00018,2]
[408092421,1773137440425,-1638.34538543,0.00018,2]
[408092422,1773137440435,-2500.0,0.00018084,2]
[408092423,1773137440444,-1787.54805324,0.000181,2]
[408092424,1773137440454,-316.70009739,0.00018191,2]
[408092425,1773137440463,-607.61277218,0.00018191,2]
[408092426,1773137440474,-200.50915792,0.00018191,2]
[408092427,1773137440482,-197.84836511,0.00018191,2]
[408092428,1773137440491,-2500.0,0.00018191,2]
[408092429,1773137440500,-3552.71969971,0.0001821,2]
[408092430,1773137440509,-375.54,0.00018211,2]
[408092431,1773137440518,-11190.58288699,0.00018221,2]
[408092432,1773137440527,-755.48936555,0.00018251,2]
[408092433,1773137440536,-600.0,0.00018325,7]
[408092434,1773137440547,-500.0,0.00018325,7]
[408092435,1773137440557,-500.0,0.00018325,7]
[408092436,1773137440566,-164.88,0.00018349,2]
[408092437,1773137440575,-314.72,0.00018374,2]
[408092438,1773137440584,-500.0,0.00018411,7]
[408092439,1773137440593,-170.962384,0.00018442,2]
[408092440,1773137440602,-505.02,0.00018526,2]
[408092441,1773137440611,-392.48579987,0.00018529,2]
[408092442,1773137440621,-222.0,0.0001854,2]
[408092443,1773137440630,-1680.0,0.00018551,2]
[408092445,1773137440639,-11190.58288699,0.00018551,2]
[408092447,1773137440648,-500.0,0.00018575,2]
[408092448,1773137440656,-500.0,0.00018685,7]
[408092449,1773137440666,-6484.40110634,0.000187,2]
[408092450,1773137440675,-500.0,0.00018712,2]
[408092451,1773137440684,-275.0,0.00018719,2]
[408092452,1773137440693,-504.0,0.000188,3]
[408092453,1773137440703,-1000.0,0.00018801,2]
[408092454,1773137440712,-500.0,0.00018801,2]
[408092455,1773137440721,-174.61919141,0.00018801,2]
[408092456,1773137440732,-869.39421668,0.00018801,2]
[408092457,1773137440741,-200.0,0.00018801,2]
[408092458,1773137440751,-262.90206542,0.00018801,2]
[408092459,1773137440759,-172.91703981,0.00018845,2]
[408092460,1773137440768,-1032.95,0.00018855,2]
[408092461,1773137440778,-11190.58288699,0.00018881,2]
[408092462,1773137440787,-500.0,0.00018959,7]
[408092463,1773137440797,-152.0,0.00018967,4]
[408092464,1773137440806,-9728.39527393,0.00018971,2]
[408092465,1773137440815,-5000.0,0.00018971,2]
[408092466,1773137440824,-5000.0,0.00018971,2]
[408092467,1773137440833,-1000.0,0.00018974,2]
[408092468,1773137440843,-500.0,0.00019075,2]
[408092469,1773137440852,-500.0,0.00019087,2]
[408092470,1773137440861,-1032.95,0.0001914,2]
[408092471,1773137440870,-1904.8093091,0.0001916,2]
[408092472,1773137440879,-1213.0,0.00019171,2]
[408092473,1773137440888,-922.0,0.00019171,2]
[408092474,1773137440897,-787.0,0.00019178,2]
[408092475,1773137440906,-250.0,0.00019178,2]
[408092476,1773137440916,-11190.58288699,0.00019212,2]
[408092477,1773137440925,-500.0,0.00019233,7]
[408092478,1773137440933,-2461.0,0.00019275,2]
[408092479,1773137440942,-5995.0,0.00019275,2]
[408092480,1773137440951,-414.0,0.00019275,2]
[408092481,1773137440960,-154.80186,0.000193,2]
[408092482,1773137440969,-500.0,0.00019313,2]
[408092483,1773137440978,-1000.0,0.00019349,2]
[408092484,1773137440987,-282.65723169,0.00019349,2]
[408092485,1773137440996,-500.0,0.00019349,2]
[408092486,1773137441005,-600.0,0.00019421,7]
[408092487,1773137441014,-500.0,0.00019421,7]
[408092488,1773137441024,-160.16670263,0.00019425,2]
[408092489,1773137441034,-164.88,0.00019496,2]
[408092490,1773137441043,-500.0,0.00019507,7]
[408092491,1773137441054,-1269.44,0.00019534,2]
[408092492,1773137441065,-11190.58288699,0.00019542,2]
[408092493,1773137441075,-4953.85469342,0.00019561,2]
[408092494,1773137441085,-216.0,0.00019561,2]
[408092495,1773137441096,-150.0,0.00019561,2]
[408092496,1773137441106,-150.0,0.00019561,2]
[408092497,1773137441116,-150.0,0.00019561,2]
[408092498,1773137441126,-150.0,0.00019561,2]
[408092499,1773137441137,-150.0,0.00019561,2]
[408092500,1773137441146,-3505.0,0.00019561,2]
[408092501,1773137441156,-1342.0,0.00019561,2]
[408092502,1773137441165,-1042.0,0.00019561,2]
[408092503,1773137441174,-1379.86937744,0.0001957,2]
[408092504,1773137441184,-2000.0,0.00019594,2]
[408092505,1773137441193,-500.0,0.00019623,2]
[408092506,1773137441202,-425.0204062,0.00019643,2]
[408092507,1773137441211,-271.0,0.00019669,5]
[408092508,1773137441221,-150.0,0.00019692,2]
[408092509,1773137441231,-150.0,0.00019692,2]
[408092510,1773137441240,-2000.0,0.000197,2]
[408092511,1773137441249,-787.0,0.00019726,2]
[408092512,1773137441261,-514.251,0.00019738,2]
[408092513,1773137441271,-227.62322685,0.00019747,2]
[408092514,1773137441280,-187.0,0.00019754,2]
[408092515,1773137441288,-500.0,0.00019781,7]
[408092516,1773137441297,-153.59002682,0.00019789,2]
[408092517,1773137441306,-332.601801,0.00019844,7]
[408092518,1773137441316,-1032.95,0.00019863,2]
[408092519,1773137441325,-551.0,0.00019863,2]
[408092520,1773137441334,-500.0,0.00019863,2]
[408092521,1773137441343,-308.55846342,0.00019869,2]
[408092522,1773137441352,-2420.9855,0.00019869,2]
[408092523,1773137441362,-10000.0,0.00019869,2]
[408092524,1773137441372,-150.0,0.00019871,2]
[408092525,1773137441381,-151.0,0.00019872,2]
[408092526,1773137441392,-154.532111,0.00019872,2]
[408092527,1773137441405,-151.0,0.00019872,2]
[408092528,1773137441414,-151.0,0.00019872,2]
[408092529,1773137441423,-151.0,0.00019872,2]
[408092530,1773137441434,-161.912981,0.00019872,2]
[408092531,1773137441445,-151.0,0.00019872,2]
[408092532,1773137441455,-161.912981,0.00019872,2]
[408092533,1773137441464,-151.0,0.00019872,2]
[408092534,1773137441474,-161.912981,0.00019872,2]
[408092535,1773137441483,-189.498979,0.00019872,2]
[408092536,1773137441494,-161.912981,0.00019872,2]
[408092537,1773137441504,-151.0,0.00019872,2]
[408092538,1773137441513,-151.0,0.00019872,2]
[408092539,1773137441523,-151.0,0.00019872,2]
[408092540,1773137441531,-151.0,0.00019872,2]
[408092541,1773137441541,-151.0,0.00019872,2]
[408092542,1773137441550,-151.0,0.00019872,2]
[408092543,1773137441559,-151.0,0.00019872,2]
[408092544,1773137441569,-285.273801,0.00019872,2]
[408092545,1773137441578,-151.0,0.00019872,2]
[408092546,1773137441587,-263.002004,0.00019872,2]
[408092547,1773137441596,-263.002004,0.00019872,2]
[408092548,1773137441608,-263.002004,0.00019872,2]
[408092549,1773137441616,-263.002004,0.00019872,2]
[408092550,1773137441626,-286.709217,0.00019872,2]
[408092551,1773137441635,-286.709217,0.00019872,2]
[408092552,1773137441644,-286.709217,0.00019872,2]
[408092553,1773137441654,-286.709217,0.00019872,2]
[408092554,1773137441663,-751.277242,0.00019872,2]
[408092555,1773137441673,-151.0,0.00019872,2]
[408092556,1773137441683,-151.0,0.00019872,2]
[408092557,1773137441694,-151.0,0.00019872,2]
[408092558,1773137441705,-151.0,0.00019872,2]
[408092559,1773137441714,-151.0,0.00019872,2]
[408092560,1773137441724,-540.493045,0.00019872,2]
[408092561,1773137441733,-540.493045,0.00019872,2]
[408092562,1773137441743,-540.493045,0.00019872,2]
[408092563,1773137441752,-540.493045,0.00019872,2]
[408092564,1773137441762,-151.0,0.00019872,2]
[408092565,1773137441772,-151.0,0.00019872,2]
[408092566,1773137441786,-151.0,0.00019872,2]
[408092567,1773137441795,-151.0,0.00019872,2]
[408092568,1773137441805,-151.0,0.00019872,2]
[408092569,1773137441814,-151.0,0.00019872,2]
[408092570,1773137441824,-1000.0,0.00019897,2]
[408092571,1773137441833,-541.97,0.000199,7]
[408092572,1773137441843,-150.0,0.00019945,4]
[408092573,1773137441854,-150.0,0.00019945,4]
[408092574,1773137441864,-150.0,0.00019945,4]
[408092575,1773137441873,-150.0,0.00019945,4]
[408092576,1773137441882,-150.0,0.00019945,4]
[408092577,1773137441893,-278.75390287,0.00019945,4]
[408092578,1773137441902,-150.0,0.00019945,4]
[408092579,1773137441911,-150.0,0.00019945,4]
[408092580,1773137441920,-150.0,0.00019945,4]
[408092581,1773137441928,-199.17417655,0.00019945,4]
[408092582,1773137441942,-150.0,0.00019945,4]
[408092583,1773137441951,-150.0,0.00019952,4]
[408092584,1773137441960,-150.0,0.00019959,4]
[408092585,1773137441969,-150.0,0.00019959,4]
[408092586,1773137441978,-151.0,0.00019959,2]
[408092587,1773137441987,-151.0,0.00019959,2]
[408092588,1773137441996,-151.0,0.00019959,2]
[408092589,1773137442005,-248.315063,0.00019959,2]
[408092590,1773137442014,-248.315063,0.00019959,2]
[408092591,1773137442023,-248.315063,0.00019959,2]
[408092592,1773137442032,-357.417096,0.00019959,2]
[408092593,1773137442041,-248.315063,0.00019959,2]
[408092594,1773137442050,-357.417096,0.00019959,2]
[408092595,1773137442059,-357.417096,0.00019959,2]
[408092596,1773137442068,-151.0,0.00019959,2]
[408092597,1773137442078,-357.417096,0.00019959,2]
[408092598,1773137442088,-151.0,0.00019959,2]
[408092599,1773137442098,-283.289039,0.00019959,2]
[408092600,1773137442107,-151.0,0.00019959,2]
[408092601,1773137442116,-150.0,0.00019963,4]
[408092602,1773137442125,-150.0,0.00019963,4]
[408092603,1773137442137,-150.0,0.00019966,4]
[408092604,1773137442146,-500.0,0.00019966,2]
[408092605,1773137442156,-1032.95,0.00019968,2]
[408092606,1773137442165,-1032.95,0.00019968,2]
[408092607,1773137442175,-1032.95,0.00019968,2]
[408092608,1773137442184,-1032.95,0.00019968,2]
[408092609,1773137442195,-1032.95,0.00019968,2]
[408092610,1773137442205,-1032.95,0.00019968,2]
[408092611,1773137442216,-1032.95,0.00019968,2]
[408092612,1773137442226,-500.0,0.00019968,2]
[408092613,1773137442235,-500.0,0.00019968,2]
[408092614,1773137442244,-151.0,0.00019968,2]
[408092615,1773137442253,-422.625159,0.00019968,2]
[408092616,1773137442263,-422.625159,0.00019968,2]
[408092617,1773137442272,-422.625159,0.00019968,2]
[408092618,1773137442281,-422.625159,0.00019968,2]
[408092619,1773137442290,-151.0,0.00019968,2]
[408092620,1773137442299,-151.0,0.00019968,2]
[408092621,1773137442308,-151.0,0.00019968,2]
[408092622,1773137442318,-151.0,0.00019968,2]
[408092623,1773137442326,-151.0,0.00019968,2]
[408092624,1773137442335,-151.0,0.00019968,2]
[408092625,1773137442344,-151.0,0.00019968,2]
[408092626,1773137442353,-151.0,0.00019968,2]
[408092627,1773137442369,-151.0,0.00019968,2]
[408092628,1773137442382,-1199.52025,0.00019968,2]
[408092629,1773137442394,-151.0,0.00019968,2]
[408092630,1773137442404,-1199.52025,0.00019968,2]
[408092631,1773137442414,-172.910745,0.00019968,2]
[408092632,1773137442423,-259.401714,0.00019968,2]
[408092633,1773137442433,-1199.52025,0.00019968,2]
[408092634,1773137442442,-172.910745,0.00019968,2]
[408092635,1773137442451,-1199.52025,0.00019968,2]
[408092636,1773137442460,-172.910745,0.00019968,2]
[408092637,1773137442472,-172.910745,0.00019968,2]
[408092638,1773137442481,-151.0,0.00019968,2]
[408092639,1773137442491,-151.0,0.00019968,2]
[408092640,1773137442501,-151.0,0.00019968,2]
[408092641,1773137442510,-151.0,0.00019968,2]
[408092642,1773137442519,-151.0,0.00019968,2]
[408092643,1773137442529,-505.02,0.00019968,2]
[408092644,1773137442538,-65.00003438,0.00019969,2]
[408092645,1773137442547,-1037.93,0.00019969,2]
[408092646,1773137442556,-1037.93,0.00019969,2]
[408092647,1773137442566,-1037.93,0.00019969,2]
[408092648,1773137442575,-1037.93,0.00019969,2]
[408092649,1773137442585,-1037.93,0.00019969,2]
[408092650,1773137442594,-1037.93,0.00019969,2]
[408092651,1773137442603,-1037.93,0.00019969,2]
[408092652,1773137442612,-1037.93,0.00019969,2]
[408092653,1773137442622,-1037.93,0.00019969,2]
[408092654,1773137442631,-1037.93,0.00019969,2]
[408092655,1773137442640,-1037.93,0.00019969,2]
[408092656,1773137442649,-1037.93,0.00019969,2]
[408092657,1773137442658,-500.0,0.00019969,2]
[408092658,1773137442667,-500.0,0.00019969,2]
[408092659,1773137442677,-500.0,0.00019969,2]
[408092660,1773137442686,-500.0,0.00019969,2]
[408092661,1773137442696,-500.0,0.00019969,2]
[408092662,1773137442706,-500.0,0.00019969,2]
[408092663,1773137442717,-575.74024748,0.00019969,2]
[408092664,1773137442727,-500.0,0.00019969,2]
[408092665,1773137442737,-214.11068435,0.00019969,2]
[408092666,1773137442747,-862.35,0.00019969,2]
[408092667,1773137442759,-862.35,0.00019969,2]
[408092669,1773137442779,-862.35,0.00019969,2]
[408092670,1773137442788,-862.35,0.00019969,2]
[408092671,1773137442797,-862.35,0.00019969,2]
[408092672,1773137442806,-862.35,0.00019969,2]
[408092673,1773137442815,-862.35,0.00019969,2]
[408092675,1773137442825,-862.35,0.00019969,2]
[408092678,1773137442835,-862.35,0.00019969,2]
[408092679,1773137442844,-862.35,0.00019969,2]
[408092680,1773137442854,-862.35,0.00019969,2]
[408092681,1773137442863,-862.35,0.00019969,2]
[408092682,1773137442873,-862.35,0.00019969,2]
[408092683,1773137442882,-862.35,0.00019969,2]
[408092684,1773137442891,-500.0,0.00019969,2]
[408092685,1773137442900,-500.0,0.00019969,2]
[408092686,1773137442909,-500.0,0.00019969,2]
[408092687,1773137442918,-500.0,0.00019969,2]
[408092688,1773137442927,-500.0,0.00019969,2]
[408092689,1773137442937,-500.0,0.00019969,2]
[408092690,1773137442947,-500.0,0.00019969,2]
[408092691,1773137442957,-500.0,0.00019969,2]
[408092692,1773137442966,-500.0,0.00019969,2]
[408092693,1773137442976,-222.67264945,0.00019969,2]
[408092694,1773137442985,-535.82346155,0.00019969,2]
[408092695,1773137442995,-522.58561873,0.00019969,2]
[408092696,1773137443004,-500.0,0.00019969,2]
[408092697,1773137443013,-515.50389699,0.00019969,2]
[408092698,1773137443022,-500.0,0.00019969,2]
[408092699,1773137443031,-626.83062823,0.00019969,2]
[408092700,1773137443043,-500.0,0.00019969,2]
[408092701,1773137443059,-515.12497816,0.00019969,2]
[408092702,1773137443069,-507.76387762,0.00019969,2]
[408092703,1773137443078,-500.0,0.00019969,2]
[408092704,1773137443088,-500.0,0.00019969,2]
[408092705,1773137443097,-500.0,0.00019969,2]
[408092706,1773137443107,-500.0,0.00019969,2]
[408092707,1773137443116,-191.30814144,0.00019969,2]
[408092708,1773137443126,-500.0,0.00019969,2]
[408092709,1773137443135,-512.94285301,0.00019969,2]
[408092710,1773137443144,-500.0,0.00019969,2]
[408092711,1773137443154,-220.34114178,0.00019969,2]
[408092712,1773137443163,-500.0,0.00019969,2]
[408092715,1773137443471,-500.0,0.00019969,2]
[408092716,1773137443480,-500.0,0.00019969,2]
[408092717,1773137443489,-500.0,0.00019969,2]
[408092718,1773137443498,-500.0,0.00019969,2]
[408092719,1773137443508,-500.0,0.00019969,2]
[408092720,1773137443518,-500.0,0.00019969,2]
[408092721,1773137443528,-500.0,0.00019969,2]